[Event "81st Italian Championship 2022"]
[Site "Cagliari"]
[Date "2022.11.22"]
[Round "10.6"]
[White "Brunello, Sabino"]
[Black "Basso, Pier Luigi"]
[Result "1-0"]
[ECO "A90"]
[WhiteElo "2518"]
[BlackElo "2503"]
[Annotator "TA"]
[PlyCount "231"]
[EventDate "2022.11.12"]
[EventType "tourn"]
[EventCountry "ITA"]
[SourceTitle "playchess.com"]
[Source "ChessBase"]
[SourceQuality "1"]
[TimeControl "40/6000+30:20/3000:900+30"]

{[%evp 21,230,6,14,9,15,0,0,0,0,0,0,0,0,-9,8,7,22,25,48,-10,0,-29,52,65,141,154,148,107,162,168,173,177,197,209,197,187,217,196,168,135,136,141,207,203,375,360,349,234,227,234,230,219,212,227,277,297,272,285,265,263,289,251,225,244,283,286,355,353,487,395,403,363,361,360,329,165,415,415,288,235,756,750,731,714,652,568,633,616,632,573,1734,1569,1458,1048,1282,1085,5485,5176,2739,2246,29957,29960,29960,29953,29956,29957,29959,29959,29960,29961,29960,29958,29964,29965,29965,29966,29966,29965,29965,29965,29968,29969,29968,29968,29966,29966,29967,29968,29967,29969,29968,29969,29968,29968,29969,29971,29971,29972,29972,29970,29969,29970,29970,29969,29968,29969,29967,29968,29970,29971,29968,29969,29973,29974,29975,29974,29974,29975,29975,29976,29976,29977,29977,29977,29977,29978,29978,29975,29978,4129,29979,29980,29980,29981,29981,29982,29982,29971,29983,29984,29984,29985,29985,29986,29987,29988,29988,29988,29989,29990,29990,29990,29991,29992,29992,29992,29992,29992,29993,29994,29994,29995,29995,29996,29996,29997,29997,29998,29998,29999,29999]} 1. d4 {[%emt 1:41:00]} d5 {[%emt 0:01:36]} 2. c4 {[%emt 0:00:00]} e6 {[%emt 0:00:07]} 3. Nf3 {[%emt 0:00:00]} c6 {[%emt 0:00:11]} 4. Nbd2 {[%emt 0:00:00]} f5 {[%emt 0:01:00]} 5. g3 {[%emt 0:00:00]} Nf6 {[%emt 0:00:08]} 6. Bg2 {[%emt 0:00:00]} Bd6 {[%emt 0:00:11]} 7. b3 {[%emt 0:00:00]} O-O {[%emt 0:00:40]} 8. Bb2 {[%emt 0:00:00]} b6 {[%emt 0:01:33]} 9. O-O {[%emt 0:00:00]} Bb7 {[%emt 0:00:09]} 10. Ne5 {[%emt 0:00:00]} Nbd7 {[%emt 0:00:42]} 11. Ndf3 {[%emt 0:00:00]} Qe7 {[%emt 0:01:11]} 12. Rc1 {[%emt 0:00:00]} Rac8 {[%emt 0:03:20]} 13. Qd3 {[%emt 0:00:00]} Rfd8 {[%emt 0:04:12]} 14. Rfd1 {[%emt 0:00:00]} Ne4 {[%emt 0:02:26]} 15. Nxd7 {[%emt 0:00:00]} Qxd7 {[%emt 0:03:24]} 16. Qb1 {[%emt 0:00:00]} Qe7 {[%emt 0:01:33]} 17. Ne1 {[%emt 0:00:00]} g6 {[%emt 0:08:24]} 18. Nd3 {[%emt 0:00:00]} h5 {[%emt 0:00:32]} 19. f3 {[%emt 0:00:00]} Nf6 {[%emt 0:13:49][%cal Oh5h4]} 20. c5 {[%emt 0:00:00]} (20. e4 $14 dxe4 21. fxe4 (21. Ne5 c5 $17) 21... Nxe4 22. c5) 20... Bb8 {[%emt 0:00:26][%cal Oh5h4]} 21. e4 {[%emt 0:00:00]} h4 {[%emt 0:06:29]} (21... fxe4 22. fxe4 Nxe4 23. Bxe4 (23. Nf2 Nxf2 24. Qxg6+ Qg7 $14) 23... dxe4 24. Nf2 $11) (21... dxe4 $11 22. fxe4 h4) 22. e5 $14 {[%emt 0:00:00]} Nh5 {[%emt 0:02:37]} ({Better is} 22... Nd7 $14) 23. g4 $16 {[%emt 0:00:00]} Ng7 {[%emt 0:01:38]} 24. Nf2 {[%emt 0:00:00]} Ba6 {[%emt 0:02:33]} (24... Rd7 $16) 25. Rc2 $18 {[%emt 0:01:40]} bxc5 {[%emt 0:05:14]} 26. Ba3 {[%emt 0:00:44]} (26. dxc5 $6 Qg5 $14) (26. Rxc5 {[#]} Bxe5 $1 27. Rc2 (27. Ra5 $2 Bxh2+ 28. Kh1 Bf1 $19) 27... Bf4 $15) 26... h3 {[%emt 0:08:24]} 27. Bxc5 {[%emt 0:00:27]} Qh4 {[%emt 0:02:32]} 28. Bxh3 {[%emt 0:01:09]} Bc7 {[%emt 0:00:43]} 29. Qc1 {[%emt 0:03:57] Black must now prevent Qa3.} Rd7 {[%emt 0:01:01]} 30. Bf1 {[%emt 0:01:04]} Bxf1 {[%emt 0:00:33]} 31. Rxf1 {[%emt 0:00:01]} (31. Kxf1 Qxh2 32. Qg5 fxg4 $14) 31... Bd8 {[%emt 0:00:38]} (31... Rf7 $16 {might work better.} 32. Rc3 Ba5) 32. Nd3 {[%emt 0:03:11]} fxg4 $2 {[%emt 0:01:13]} (32... Rf7 33. Rg2 g5) 33. fxg4 {[%emt 0:00:07]} Bg5 {[%emt 0:00:10]} 34. Qe1 {[%emt 0:01:23]} Qxg4+ {[%emt 0:03:45]} 35. Rg2 {[%emt 0:00:02]} Qh5 {[%emt 0:00:07]} 36. Qg3 {[%emt 0:01:09]} Bh6 {[%emt 0:00:23]} 37. Qxg6 {[%emt 0:01:23]} Qxg6 {[%emt 0:00:36]} 38. Rxg6 {[%emt 0:00:01]} Kh7 {[%emt 0:00:17]} 39. Rff6 {[%emt 0:00:43]} Nf5 {[%emt 0:05:40]} 40. Kf1 {[%emt 0:01:48]} Rf7 {[%emt 0:04:03]} 41. Rxf7+ {[%emt 0:08:56]} Kxg6 {[%emt 0:00:00]} 42. Rf6+ {[%emt 0:00:00]} (42. Rxa7 Be3 $11) 42... Kh5 {[%emt 0:00:00]} 43. Rxe6 {[%emt 0:00:00]} Be3 {[%emt 0:00:46]} 44. Rf6 {[%emt 0:20:47]} ({Not} 44. Bxa7 Kg5 $18) 44... Kg5 {[%emt 0:04:21]} 45. Ke2 {[%emt 0:10:30]} Bxd4 {[%emt 0:00:38] [#]} 46. Rxf5+ $1 {[%emt 0:02:36][%mdl 512]} Kxf5 {[%emt 0:00:00]} 47. Bxd4 {[%emt 0:00:00]} Rh8 {[%emt 0:00:00]} 48. Nf2 {[%emt 0:03:10]} (48. Bxa7 Ra8 $18) (48. h4 $142) 48... Rxh2 $2 {[%emt 0:00:27]} (48... Rc8 {was called for.} 49. Nd3 (49. Bxa7 Ra8 $16) 49... Rh8) 49. Bxa7 {[%emt 0:00:00]} Rh4 {[%emt 0:00:00] Prevents Bd4.} 50. Nd3 {[%emt 0:02:28] Bf2 is the strong threat.} d4 $2 {[%emt 0:02:11]} (50... Rh2+ 51. Bf2 c5 52. Nxc5 Kxe5) 51. Bb8 {[%emt 0:00:52]} Rh2+ {[%emt 0:00:00]} 52. Nf2 {[%emt 0:00:00]} Ke6 {[%emt 0:02:46]} 53. Bd6 {[%emt 0:00:00]} Kd5 {[%emt 0:00:00]} 54. a4 {[%emt 0:00:03]} c5 {[%emt 0:00:05]} 55. a5 {[%emt 0:00:00]} d3+ {[%emt 0:02:03]} 56. Ke3 {[%emt 0:00:00] aiming for a6.} d2 {[%emt 0:00:00]} 57. Nd1 {[%emt 0:00:00] And now a6 would win.} Rh3+ {[%emt 0:00:00]} 58. Kxd2 {[%emt 0:00:49] Strongly threatening a6.} Rxb3 {[%emt 0:00:00]} 59. Nc3+ {[%emt 0:00:00]} Kc6 {[%emt 0:00:00]} 60. Ne4 {[%emt 0:00:00] Hoping for a6.} Ra3 {[%emt 0:00:04]} 61. e6 {[%emt 0:15:19]} Rxa5 {[%emt 0:17:37]} 62. Bf8 {[%emt 0:00:24]} Ra2+ {[%emt 0:14:17]} 63. Ke3 {[%emt 0:00:26]} Ra3+ {[%emt 0:02:59]} 64. Kf4 {[%emt 0:00:40]} Kd5 {[%emt 0:01:41]} 65. e7 {[%emt 0:00:20]} Ra8 {[%emt 0:00:05] [#]} 66. Nd6 $1 {[%emt 0:00:38][%mdl 512]} Kd4 {[%emt 0:05:43]} (66... Ke6 67. Kg5) 67. e8=Q {[%emt 0:00:14]} Rxe8 {[%emt 0:00:05]} 68. Nxe8 {[%emt 0:00:03]} c4 {[%emt 0:00:05]} 69. Ba3 {[%emt 0:00:06]} c3 {[%emt 0:00:14]} 70. Nd6 {[%emt 0:00:21]} c2 {[%emt 0:00:24]} 71. Bc1 {[%emt 0:00:22]} Kd3 {[%emt 0:00:38]} 72. Kf3 {[%emt 0:00:03]} Kd4 {[%emt 0:00:16]} 73. Ne4 {[%emt 0:00:04]} Kd3 {[%emt 0:00:11]} 74. Nf2+ {[%emt 0:00:03]} Kd4 {[%emt 0:00:06]} 75. Ke2 {[%emt 0:00:05]} Kc4 {[%emt 0:00:09]} 76. Kd2 {[%emt 0:00:04]} Kc5 {[%emt 0:00:31]} 77. Kd3 {[%emt 0:00:04]} Kd5 {[%emt 0:00:06]} 78. Ng4 {[%emt 0:00:04]} Kc5 {[%emt 0:00:04]} 79. Ne3 {[%emt 0:00:03]} Kb4 {[%emt 0:00:11]} 80. Nd5+ {[%emt 0:00:05]} Kc5 {[%emt 0:00:23]} 81. Nf4 {[%emt 0:00:03]} Kb5 {[%emt 0:00:38]} 82. Nh3 {[%emt 0:00:06]} Kc5 {[%emt 0:00:04]} 83. Ng1 {[%emt 0:00:03]} Kd5 {[%emt 0:00:03]} 84. Ne2 {[%emt 0:00:06]} Kc5 {[%emt 0:00:06]} 85. Nc3 {[%emt 0:00:33]} Kd6 {[%emt 0:00:39]} 86. Kxc2 {[%emt 0:00:04]} Kc5 {[%emt 0:00:29]} 87. Kd3 {[%emt 0:00:01]} Kc6 {[%emt 0:00:08]} 88. Kd4 {[%emt 0:00:08]} Kd6 {[%emt 0:00:05]} 89. Bf4+ {[%emt 0:00:09]} Kc6 {[%emt 0:00:05]} 90. Kc4 {[%emt 0:00:33]} Kb6 {[%emt 0:00:06]} 91. Kd5 {[%emt 0:00:11]} Kb7 {[%emt 0:00:11]} 92. Kd6 {[%emt 0:00:27]} Kb6 {[%emt 0:00:08]} 93. Be3+ {[%emt 0:00:22]} Kb7 {[%emt 0:00:04]} 94. Kd7 {[%emt 0:00:16]} Ka8 {[%emt 0:00:16]} 95. Kc6 {[%emt 0:00:06]} Kb8 {[%emt 0:00:02]} 96. Nd5 {[%emt 0:00:31]} Ka8 {[%emt 0:00:06]} 97. Nc7+ {[%emt 0:00:16]} Kb8 {[%emt 0:00:04]} 98. Bd4 {[%emt 0:00:05]} Kc8 {[%emt 0:00:04]} 99. Ba7 {[%emt 0:00:03]} Kd8 {[%emt 0:00:04]} 100. Nd5 {[%emt 0:00:04]} Ke8 {[%emt 0:00:20]} 101. Kd6 {[%emt 0:00:03]} Kf7 {[%emt 0:00:04]} 102. Ne7 {[%emt 0:00:07]} Kf6 {[%emt 0:00:05]} 103. Be3 {[%emt 0:00:03]} Kf7 {[%emt 0:00:05]} 104. Bd4 {[%emt 0:00:05]} Ke8 {[%emt 0:00:09]} 105. Ke6 {[%emt 0:00:03]} Kd8 {[%emt 0:00:05]} 106. Bb6+ {[%emt 0:00:04]} Ke8 {[%emt 0:00:03]} 107. Nf5 {[%emt 0:00:05]} Kf8 {[%emt 0:00:07]} 108. Ba5 {[%emt 0:00:04]} Ke8 {[%emt 0:00:05]} 109. Ng7+ {[%emt 0:00:02]} Kf8 {[%emt 0:00:04]} 110. Kf6 {[%emt 0:00:03]} Kg8 {[%emt 0:00:04]} 111. Kg6 {[%emt 0:00:02]} Kf8 {[%emt 0:00:05]} 112. Bb4+ {[%emt 0:00:03]} Kg8 {[%emt 0:00:03]} 113. Nf5 {[%emt 0:00:09]} Kh8 {[%emt 0:00:04]} 114. Bc5 {[%emt 0:00:04]} Kg8 {[%emt 0:00:06]} 115. Nh6+ {[%emt 0:00:03]} Kh8 {[%emt 0:00:04]} 116. Bd4# {[%emt 0:00:02]} 1-0

[Event "81st Italian Championship 2022"]
[Site "Cagliari"]
[Date "2022.11.23"]
[Round "11.1"]
[White "Basso, Pier Luigi"]
[Black "Barp, Alberto"]
[Result "1/2-1/2"]
[WhiteElo "2503"]
[BlackElo "2412"]
[Annotator "TA"]
[PlyCount "38"]
[EventDate "2022.11.12"]
[EventType "tourn"]
[EventCountry "ITA"]
[SourceTitle "playchess.com"]
[Source "ChessBase"]
[SourceQuality "1"]
[TimeControl "40/6000+30:20/3000:900+30"]

{[%evp 18,19,-14,-5]} 1. Nf3 {[%emt 0:02:58]} d5 {[%emt 0:02:03]} 2. g3 {[%emt 0:00:03]} Nf6 {[%emt 0:00:19]} 3. Bg2 {[%emt 0:00:02]} c6 {[%emt 0:00:07]} 4. O-O {[%emt 0:00:04]} Bf5 {[%emt 0:00:10]} 5. b3 {[%emt 0:00:03]} h6 {[%emt 0:00:09]} 6. Bb2 {[%emt 0:00:03]} Nbd7 {[%emt 0:00:05]} 7. d3 {[%emt 0:00:03]} e6 {[%emt 0:00:06]} 8. Nbd2 {[%emt 0:00:02]} Be7 {[%emt 0:00:06]} 9. c4 {[%emt 0:00:03] 9.Re1 is a critical line.} O-O {[%emt 0:00:06]} 10. Re1 {[%emt 0:00:02] [#]} {Predecessor:} Bh7 $146 {A12: English Opening: 1...c6 with b3 by White.} 11. Qc2 Re8 12. Rad1 Bf8 13. e4 dxe4 14. Nxe4 Nxe4 15. dxe4 Qc7 16. Qc3 a5 17. a3 Nc5 18. Ne5 Rad8 19. Rxd8 Rxd8 {0-1 (38) Lagarde,M (2625)-Jobava,B (2582) Chess.com INT 2021} 1/2-1/2

[Event "81st Italian Championship 2022"]
[Site "Cagliari"]
[Date "2022.11.23"]
[Round "11.2"]
[White "David, Alberto"]
[Black "Brunello, Sabino"]
[Result "1/2-1/2"]
[ECO "C83"]
[WhiteElo "2517"]
[BlackElo "2518"]
[Annotator "TA"]
[PlyCount "45"]
[EventDate "2022.11.12"]
[EventType "tourn"]
[EventCountry "ITA"]
[SourceTitle "playchess.com"]
[Source "ChessBase"]
[SourceQuality "1"]
[TimeControl "40/6000+30:20/3000:900+30"]

{[%evp 21,32,23,29,34,39,38,51,41,39,44,48,51,50]} 1. e4 {[%emt 0:00:13]} e5 {[%emt 0:08:44]} 2. Nf3 {[%emt 0:00:07]} Nc6 {[%emt 0:00:03]} 3. Bb5 {[%emt 0:00:06][%cal Bf1b5,Bb5a4,Ba4b3,Bb3c2,Bc2e4][%mdl 32]} a6 {[%emt 0:00:14]} 4. Ba4 {[%emt 0:00:06]} Nf6 {[%emt 0:00:04]} 5. O-O {[%emt 0:00:20]} Nxe4 {[%emt 0:00:33]} 6. d4 {[%emt 0:00:15]} b5 {[%emt 0:00:04]} 7. Bb3 {[%emt 0:00:04]} d5 {[%emt 0:00:04][%cal Bd7d5,Bd5d4,Bd4c3][%mdl 32]} 8. dxe5 {[%emt 0:00:07]} Be6 {[%emt 0:00:03]} 9. c3 {[%emt 0:01:27]} Be7 {[%emt 0:02:24]} 10. Nbd2 {[%emt 0:00:49]} Nc5 {[%emt 0:00:32]} 11. Bc2 {[%emt 0:00:36]} d4 {[%emt 0:00:04]} 12. Nb3 {[%emt 0:00:50][%cal Rf3d4] C83: Open Ruy Lopez: 9 c3 Be7.} dxc3 {[%emt 0:00:22] [#] Hoping for ...Qxd1. White is slightly better.} 13. Nxc5 {[%emt 0:14:53]} Bxc5 {[%emt 0:00:44]} 14. Be4 {[%emt 0:06:20]} Qd7 {[%emt 0:13:37]} 15. Bg5 $1 {[%emt 0:00:26][%mdl 1024] Strongly threatening Qc2. White has compensation.} h6 {[%emt 0:05:06] [#]} ({Much worse is} 15... cxb2 16. Rb1 Rb8 17. Qc2 $11) 16. Qc2 $1 {[%emt 0:06:11]} hxg5 {[%emt 0:16:27] [#] Black got outplayed after the opening.   Weighted Error Value: White=0.00 (flawless) /Black=0.01 (flawless)} {Predecessor:} 17. Rad1 $146 Nb4 18. Qxc3 Bxf2+ 19. Kxf2 Nd5 20. Qc5 c6 21. Nxg5 Rh5 22. Nf3 Qa7 23. Rc1 {0-1 (62) Navara,D (2700)-Abdusattorov,N (2651) Belgrade 2022} 1/2-1/2

[Event "81st Italian Championship 2022"]
[Site "Cagliari"]
[Date "2022.11.23"]
[Round "11.3"]
[White "Sonis, Francesco"]
[Black "Godena, Michele"]
[Result "1-0"]
[ECO "A08"]
[WhiteElo "2547"]
[BlackElo "2463"]
[Annotator "TA"]
[PlyCount "115"]
[EventDate "2022.11.12"]
[EventType "tourn"]
[EventCountry "ITA"]
[SourceTitle "playchess.com"]
[Source "ChessBase"]
[SourceQuality "1"]
[TimeControl "40/6000+30:20/3000:900+30"]

{[%evp 9,115,51,52,26,22,27,25,25,32,27,33,20,38,17,57,72,72,60,58,80,51,51,92,67,113,122,108,56,104,106,148,144,172,155,172,145,168,168,154,111,118,122,103,102,100,99,106,113,112,91,109,92,87,81,139,157,218,219,209,209,307,293,360,344,313,208,221,162,497,505,480,453,544,539,500,531,606,495,467,442,420,410,378,352,720,727,727,701,685,645,738,707,2066,2039,1877,1692,4808,4164,2893,2673,29966,29967,29974,29978,29977,29977,29972,29972]} 1. Nf3 {[%emt 0:00:51]} d5 {[%emt 0:00:12]} 2. g3 {[%emt 0:00:04]} c5 {[%emt 0:11:54]} 3. Bg2 {[%emt 0:00:30]} Nf6 {[%emt 0:00:09]} 4. O-O {[%emt 0:00:07]} Nbd7 {[%emt 0:18:57]} 5. d3 {[%emt 0:32:52]} g6 {[%emt 0:14:40]} 6. Nbd2 {[%emt 0:03:36] A08: King's Indian Attack.} Bg7 {[%emt 0:03:51]} 7. e4 {[%emt 0:00:46] [#]} O-O $146 {[%emt 0:03:51]} ({Predecessor:} 7... dxe4 8. dxe4 O-O 9. Qe2 Qc7 10. Nc4 e6 11. Bf4 Qd8 12. Rfd1 b5 13. Nd6 a6 14. Ne5 Nxe5 15. Bxe5 {1-0 (32) Verlinden,R (1950)-Tomme,L Geraardsbergen 2010}) 8. Re1 {[%emt 0:00:52] White has an edge.} Qc7 {[%emt 0:08:38]} 9. exd5 {[%emt 0:04:03]} Nxd5 {[%emt 0:00:06]} 10. a3 {[%emt 0:00:03]} N7b6 {[%emt 0:05:34]} 11. Qe2 {[%emt 0:11:17]} Bd7 {[%emt 0:05:21]} 12. c4 {[%emt 0:03:28]} Nf6 {[%emt 0:00:08]} 13. Nb3 {[%emt 0:00:02]} (13. Qxe7 $2 Rfe8 14. Bf1 Rxe7 $19) (13. b4 $5 {[%cal Rd2b3]}) 13... Na4 {[%emt 0:02:47]} 14. Qc2 {[%emt 0:07:22]} (14. Qxe7 $2 Rae8 15. Bf4 Qb6 $19) 14... Rfe8 {[%emt 0:09:59]} 15. Bf4 {[%emt 0:00:17] Inhibits e5.} Qb6 {[%emt 0:00:39]} 16. Be5 {[%emt 0:00:05]} Ng4 {[%emt 0:05:26]} (16... Qa6 $14 {might be stronger.}) 17. Bxg7 $16 {[%emt 0:00:10]} Kxg7 {[%emt 0:00:03]} 18. Re2 {[%emt 0:03:34]} (18. h3 $16 Nf6 19. Ne5) 18... Rad8 {[%emt 0:05:08]} (18... f6 $14) 19. Rae1 {[%emt 0:00:35]} Kf8 {[%emt 0:04:08]} 20. h3 {[%emt 0:04:48] Inhibits f6.} Nf6 {[%emt 0:00:07]} 21. Ne5 {[%emt 0:02:30]} Qc7 {[%emt 0:05:24]} 22. Qd2 {[%emt 0:01:38]} b5 {[%emt 0:00:56]} 23. Na5 {[%emt 0:04:28] Nac6 is the strong threat.} bxc4 {[%emt 0:00:33]} 24. dxc4 {[%emt 0:04:48] [#] Hoping for Nac6.} Kg7 {[%emt 0:01:00][%cal Od7g4]} 25. Nb7 {[%emt 0:00:10]} Bg4 {[%emt 0:01:16]} 26. Nxd8 {[%emt 0:01:08] Dancing on a razor blade.} Rxd8 {[%emt 0:00:01]} 27. Qc2 {[%emt 0:00:55]} ({But not} 27. Nxg4 Rxd2 28. Rxd2 Nxg4 29. hxg4 Qa5 $14) 27... Bxe2 {[%emt 0:00:05]} 28. Rxe2 {[%emt 0:00:03]} Nb6 {[%emt 0:00:28]} 29. Nc6 {[%emt 0:00:06] Prevents Rd4.} Rd7 {[%emt 0:01:09]} 30. b4 $36 {[%emt 0:00:23][%mdl 2048] White is on the roll.} Qd6 {[%emt 0:00:38]} 31. Kh2 {[%emt 0:02:03] White is much more active.} h5 {[%emt 0:02:00] [#]} ({Better is} 31... e6) 32. a4 $1 {[%emt 0:09:54][%cal Ba3a4,Ba4a5][%mdl 32]} h4 {[%emt 0:00:40]} (32... cxb4 $16 33. c5 b3 34. Qxb3 Qxc5) 33. a5 $18 {[%emt 0:00:12]} Nc8 {[%emt 0:00:30]} 34. b5 {[%emt 0:00:21]} hxg3+ {[%emt 0:00:30]} (34... e6 $142 35. Qb3 Qc7) 35. fxg3 {[%emt 0:00:05]} e6 {[%emt 0:00:37]} 36. Qc3 {[%emt 0:00:57]} Ne7 {[%emt 0:00:20]} 37. Nxe7 {[%emt 0:03:38]} Rxe7 {[%emt 0:00:31]} 38. Qe5 {[%emt 0:00:26]} Qd8 {[%emt 0:00:38]} (38... Qxe5 {is a better chance.} 39. Rxe5 Nd7) 39. g4 {[%emt 0:01:56] Strongly threatening g5.} ({Not} 39. Qxc5 Rc7 40. Bc6 Rc8 $18) 39... Qc7 {[%emt 0:00:29]} 40. b6 {[%emt 0:00:18]} Qxe5+ {[%emt 0:00:33]} 41. Rxe5 {[%emt 0:49:06]} axb6 {[%emt 0:21:27]} 42. axb6 {[%emt 0:00:00][%mdl 4096] Endgame KRB-KRN} Re8 {[%emt 0:00:00]} 43. b7 {[%emt 0:00:00]} Nd7 {[%emt 0:01:02]} 44. Bc6 {[%emt 0:00:00]} Rb8 {[%emt 0:00:00]} 45. Bxd7 {[%emt 0:00:00]} Rxb7 {[%emt 0:00:00] KRB-KR} 46. Bb5 {[%emt 0:00:00]} Rc7 $2 {[%emt 0:00:00]} (46... Kf6) 47. g5 {[%emt 0:00:00]} Kf8 {[%emt 0:00:00]} 48. Kg3 {[%emt 0:00:00]} Ke7 {[%emt 0:00:00]} 49. Kf4 {[%emt 0:00:00]} Rc8 {[%emt 0:00:00]} 50. Re3 {[%emt 0:00:00]} Rd8 {[%emt 0:05:02]} 51. Ra3 {[%emt 0:00:00]} Rd4+ {[%emt 0:00:00]} 52. Ke5 {[%emt 0:00:00] Threatening mate with Ra8.} Rd1 {[%emt 0:00:00]} 53. Ra7+ {[%emt 0:00:00]} Kf8 {[%emt 0:00:00]} 54. Rd7 {[%emt 0:00:00]} Rh1 {[%emt 0:00:00]} 55. Kd6 {[%emt 0:00:00] White mates.} Rxh3 {[%emt 0:00:00]} 56. Kxc5 {[%emt 0:00:00]} Rh5 {[%emt 0:00:00]} 57. Kb6 {[%emt 0:00:00]} Rxg5 {[%emt 0:00:00]} 58. c5 {[%emt 0:00:00] Weighted Error Value: White=0.13 (very precise) /Black=0.33} 1-0

[Event "81st Italian Championship 2022"]
[Site "Cagliari"]
[Date "2022.11.23"]
[Round "11.5"]
[White "Dvirnyy, Danyyil"]
[Black "Lettieri, Giuseppe"]
[Result "1/2-1/2"]
[WhiteElo "2514"]
[BlackElo "2427"]
[Annotator "TA"]
[PlyCount "18"]
[EventDate "2022.11.12"]
[EventType "tourn"]
[EventCountry "ITA"]
[SourceTitle "playchess.com"]
[Source "ChessBase"]
[SourceQuality "1"]
[TimeControl "40/6000+30:20/3000:900+30"]

{[%evp 17,18,0,32]} 1. e4 {[%emt 0:00:02]} c5 {[%emt 0:00:03]} 2. Nf3 {[%emt 0:00:03]} d6 {[%emt 0:00:05]} 3. d4 {[%emt 0:00:03]} cxd4 {[%emt 0:00:05]} 4. Nxd4 {[%emt 0:00:04]} Nf6 {[%emt 0:00:06]} 5. Nc3 {[%emt 0:00:04]} a6 {[%emt 0:00:05] [#]} 6. Be3 $146 {[%emt 0:00:03]} ({Predecessor:} 6. g3 e5 7. Nde2 Be7 8. Bg2 b5 9. Nd5 Nxd5 10. Qxd5 Ra7 11. Be3 Be6 12. Qd2 Rd7 13. Nc3 O-O 14. a4 Rb7 15. axb5 axb5 16. O-O Nd7 {1-0 (41) Duda,J (2731)-Sarana,A (2668) Chess.com INT 2022}) 6... Ng4 {[%emt 0:00:05]} 7. Bc1 {[%emt 0:00:03]} Nf6 {[%emt 0:00:05]} 8. Be3 {[%emt 0:00:02]} Ng4 {[%emt 0:00:07] 8...h5 is a critical line.} 9. Bc1 {[%emt 0:00:03]} Nf6 {[%emt 0:00:04]} 1/2-1/2